bitfinex-derivatives/quotes_SOLF0:USTF0_20260305
["timestamp","ask_amount","ask_price","bid_price","bid_amount"]
[1772719529566,11.36788759,90.999,90.939,11.59913809]
[1772719529967,9.887,91.008,90.951,21.49213809]
[1772719530161,11.36788759,91.007,90.951,21.49213809]
[1772719530660,9.887,91.006,90.951,21.49213809]
[1772719530861,9.887,91.006,90.952,11.59913809]
[1772719531262,11.36788759,90.999,90.921,11.59913809]
[1772719531657,9.889,90.99,90.942,9.894]
[1772719532364,9.888,90.998,90.942,9.894]
[1772719532571,9.888,90.998,90.948,11.59913809]
[1772719533366,11.36788759,91.016,90.948,11.59913809]
[1772719533868,9.1121142,91.04,90.967,11.59913809]
[1772719533869,11.36788759,91.034,90.967,11.59913809]
[1772719534861,11.36788759,91.032,90.971,9.891]
[1772719535067,11.36788759,91.032,90.972,11.59913809]
[1772719536667,9.886,91.021,90.972,11.59913809]
[1772719537165,9.1121142,91.02,90.951,11.59913809]
[1772719537369,11.36788759,91.019,90.951,11.59913809]
[1772719537762,9.888,91.0,90.952,9.893]
[1772719539269,11.36788759,90.99,90.911,11.59913809]
[1772719539768,11.36788759,91.019,90.946,11.59913809]
[1772719540667,11.36788759,91.039,90.951,11.59913809]
[1772719541368,9.885,91.026,90.968,11.59913809]
[1772719542062,11.36788759,91.039,90.968,11.59913809]
[1772719542868,9.886,91.019,90.971,9.891]
[1772719545268,9.886,91.019,90.95,9.1121142]
[1772719545269,11.36788759,91.049,90.972,11.59913809]
[1772719545570,9.1121142,91.04,90.972,11.59913809]
[1772719545773,11.36788759,91.039,90.972,11.59913809]
[1772719547372,9.886,91.02,90.972,21.49013809]
[1772719547871,9.884,91.037,90.987,9.889]
[1772719548072,9.884,91.037,90.988,11.59913809]
[1772719548669,9.884,91.037,90.99,9.889]
[1772719549069,9.883,91.045,90.991,10.81620131]
[1772719549976,9.884,91.037,90.993,9.889]
[1772719550680,11.36788759,91.055,90.971,10.81620131]
[1772719551274,11.36788759,91.055,90.986,10.81620131]
[1772719551968,11.36788759,91.055,90.97,9.1121142]
[1772719551969,11.74090467,91.072,90.991,10.81620131]
[1772719552169,11.74090467,91.072,91.009,10.81620131]
[1772719553377,9.881,91.064,91.009,10.81620131]
[1772719554276,278.31962437,91.057,91.009,10.81620131]
[1772719556780,268.43762437,91.057,91.009,10.81620131]
[1772719557076,9.881,91.065,91.009,10.81620131]
[1772719557379,9.882,91.058,91.009,10.81620131]
[1772719558179,9.882,91.056,91.009,10.81620131]
[1772719558777,11.74090467,91.057,91.009,20.70320131]
[1772719559978,11.74090467,91.057,90.989,10.81620131]
[1772719560177,11.74090467,91.057,90.971,10.81620131]
[1772719560378,11.74090467,91.039,90.971,10.81620131]
[1772719560681,11.74090467,91.059,90.976,10.81620131]
[1772719562485,11.74090467,91.059,90.961,10.81620131]
[1772719562685,11.74090467,91.057,90.961,10.81620131]
[1772719562984,9.886,91.025,90.974,9.891]
[1772719563282,11.74090467,91.034,90.961,10.81620131]
[1772719563885,9.887,91.015,90.962,10.81620131]
[1772719565179,11.74090467,91.034,90.965,10.81620131]
[1772719565683,9.886,91.023,90.965,10.81620131]
[1772719565976,11.74090467,91.034,90.965,10.81620131]
[1772719566573,11.74090467,91.034,90.968,10.81620131]
[1772719567082,9.887,91.015,90.968,10.81620131]
[1772719567381,11.74090467,91.034,90.968,10.81620131]
[1772719567975,9.1121142,91.04,90.94,9.1121142]
[1772719567976,11.74090467,91.017,90.94,9.1121142]
[1772719568173,11.74090467,91.017,90.948,10.81620131]
[1772719569383,9.889,90.997,90.949,9.894]
[1772719569583,9.889,90.997,90.948,10.81620131]
[1772719569584,11.74090467,91.017,90.948,10.81620131]
[1772719571075,9.888,90.998,90.949,9.894]
[1772719571782,11.74090467,91.002,90.949,9.894]
[1772719571987,9.888,91.006,90.957,10.81620131]
[1772719572189,11.74090467,91.018,90.957,10.81620131]
[1772719572583,9.886,91.016,90.957,10.81620131]
[1772719572884,11.74090467,91.018,90.957,10.81620131]
[1772719574388,9.887,91.007,90.958,9.893]
[1772719574587,9.887,91.007,90.958,20.70920131]
[1772719574789,11.74090467,91.018,90.958,20.70920131]
[1772719575284,9.886,91.016,90.96,9.892]
[1772719575691,9.886,91.016,90.961,10.81620131]
[1772719576280,11.74090467,91.018,90.972,20.70720131]
[1772719576888,11.74090467,91.017,90.951,10.81620131]
[1772719577690,11.74090467,91.01,90.951,10.81620131]
[1772719578890,11.91327626,91.035,90.951,10.81620131]
[1772719579090,11.91327626,91.033,90.951,10.81620131]
[1772719579593,9.886,91.019,90.965,9.892]
[1772719579784,11.91327626,91.018,90.951,10.81620131]
[1772719580189,21.79927626,91.018,90.963,9.892]
[1772719580388,11.91327626,91.017,90.951,10.81620131]
[1772719581391,9.889,90.995,90.951,10.81620131]
[1772719581597,11.91327626,90.995,90.937,21.12349688]
[1772719581787,11.91327626,90.995,90.938,11.22849688]
[1772719582494,11.91327626,90.995,90.946,11.22849688]
[1772719583299,11.91327626,90.995,90.948,9.894]
[1772719583498,11.91327626,90.995,90.948,21.12249688]
[1772719583695,11.91327626,90.995,90.92,9.10744234]
[1772719583696,11.91327626,90.995,90.921,11.22849688]
[1772719583999,11.91327626,91.011,90.949,11.22849688]
[1772719584995,11.91327626,91.027,90.949,11.22849688]
[1772719585300,9.885,91.025,90.977,21.11949688]
[1772719585698,11.91327626,91.043,90.978,11.22849688]
[1772719586091,11.85780999,91.039,90.94,9.10744234]
[1772719586301,11.85780999,91.039,90.941,11.98939003]
[1772719587403,11.85780999,91.039,90.966,11.98939003]
[1772719587998,9.886,91.02,90.967,9.892]
[1772719588203,9.886,91.02,90.968,11.98939003]
[1772719588807,9.10744234,91.04,90.97,9.891]
[1772719588808,21.74280999,91.028,90.97,9.891]
[1772719589006,21.74280999,91.028,90.97,21.88039003]
[1772719589903,9.886,91.024,90.97,21.88039003]
[1772719590108,9.886,91.024,90.94,9.10744234]
[1772719590109,11.85780999,91.027,90.96,9.892]
[1772719590810,9.886,91.017,90.964,9.892]
[1772719591002,9.886,91.017,90.964,21.88139003]
[1772719591410,11.85780999,91.027,90.965,11.98939003]
[1772719592111,11.85780999,91.027,90.973,9.891]
[1772719592607,4.24806123,91.02,90.973,9.891]
[1772719594505,4.24806123,91.02,90.973,21.88039003]
[1772719594700,4.24806123,91.02,90.976,9.891]
[1772719594905,14.13406123,91.02,90.974,11.98939003]
[1772719595906,11.85780999,91.027,90.974,11.98939003]
[1772719596111,4.24806123,91.01,90.974,11.98939003]
[1772719597607,4.24806123,91.02,90.976,9.891]
[1772719598206,4.24806123,91.02,90.976,21.88039003]
[1772719598412,4.24806123,91.02,90.977,11.98939003]
[1772719598609,21.74280999,91.027,90.98,9.89]
[1772719598910,11.85780999,91.027,90.98,26.12745126]
[1772719599108,11.85780999,91.027,90.98,21.87939003]
[1772719599710,11.85780999,91.027,90.986,9.89]
[1772719599910,4.24806123,91.03,90.986,21.87939003]
[1772719600116,21.74180999,91.041,90.99,26.12645126]
[1772719600315,21.74180999,91.041,90.991,11.98939003]
[1772719600813,11.85780999,91.041,90.995,11.98939003]
[1772719601522,11.85780999,91.041,90.998,9.888]
[1772719602014,4.24806123,91.05,91.006,11.98939003]
[1772719602211,9.882,91.058,91.006,11.98939003]
[1772719602615,11.85780999,91.057,91.006,11.98939003]
[1772719603616,11.85780999,91.057,91.011,9.887]
[1772719603914,11.85780999,91.049,91.006,11.98939003]
[1772719605515,11.85780999,91.049,91.009,9.887]
[1772719605712,11.85780999,91.049,91.006,11.98939003]
[1772719607415,11.85780999,91.063,91.01,4.24806123]
[1772719607713,4.24806123,91.06,91.01,4.24806123]
[1772719608114,16.10587122,91.06,91.01,4.24806123]
[1772719608818,11.85780999,91.059,91.014,9.887]
[1772719609820,11.85780999,91.059,91.006,21.87639003]
[1772719610020,4.24806123,91.05,91.006,21.87639003]
[1772719610318,4.24806123,91.05,91.007,11.90920814]
[1772719610520,11.85780999,91.059,91.007,11.90920814]
[1772719611422,11.85780999,91.059,91.012,9.887]
[1772719611923,11.85780999,91.059,91.012,21.79620814]
[1772719612122,12.06765379,91.076,91.021,11.90920814]
[1772719615319,12.06765379,91.076,91.032,9.885]
[1772719615522,4.24806123,91.08,91.033,11.90920814]
[1772719616226,12.06765379,91.079,91.033,11.90920814]
[1772719616423,4.24806123,91.07,91.033,11.90920814]
[1772719617327,4.24806123,91.07,91.042,9.884]
[1772719617527,4.24806123,91.09,91.033,11.90920814]
[1772719617828,4.24806123,91.08,91.033,11.90920814]
[1772719618425,4.24806123,91.08,91.038,11.90920814]
[1772719619129,4.24806123,91.07,91.038,11.90920814]
[1772719620330,4.24806123,91.07,91.021,11.90920814]
[1772719620921,4.24806123,91.07,91.024,9.886]
[1772719621126,4.24806123,91.07,91.025,11.90920814]
[1772719622432,4.24806123,91.07,91.028,9.885]
[1772719623134,4.24806123,91.07,91.028,21.79420814]
[1772719623332,4.24806123,91.07,91.03,9.885]
[1772719623534,12.06765379,91.079,91.031,11.90920814]
[1772719624133,12.06765379,91.079,90.963,153.885]
[1772719624134,4.24806123,91.05,91.001,11.90920814]
[1772719624524,12.06765379,91.059,91.001,11.90920814]
[1772719624728,4.24806123,91.06,91.018,11.90920814]
[1772719625334,4.24806123,91.05,91.018,11.90920814]
[1772719625735,4.24806123,91.06,91.018,11.90920814]
[1772719626334,12.06765379,91.049,91.001,11.90920814]
[1772719626736,4.24806123,91.03,90.984,11.90920814]
[1772719627030,16.31571502,91.03,90.984,11.90920814]
[1772719628535,4.24806123,91.02,90.984,11.90920814]
[1772719628733,4.24806123,91.0,90.934,11.90920814]
[1772719628928,4.24806123,91.0,90.951,11.90920814]
[1772719629134,4.24806123,91.01,90.961,11.90920814]
[1772719629332,4.24806123,91.02,90.961,11.90920814]
[1772719629727,4.24806123,90.99,90.931,11.90920814]
[1772719629933,4.24806123,90.98,90.931,11.90920814]
[1772719631433,4.24806123,90.98,90.934,11.90920814]
[1772719633839,12.06765379,90.999,90.95,4.24806123]
[1772719634433,153.708,91.068,90.88,62.0]
[1772719634434,12.06765379,91.023,90.96,4.24806123]
[1772719634632,12.06765379,91.019,90.97,4.24806123]
[1772719636737,12.06765379,91.019,90.91,19.796]
[1772719636738,12.06765379,91.009,90.951,11.90920814]
[1772719637732,4.24806123,91.0,90.951,11.90920814]
[1772719637930,4.24806123,91.0,90.886,196.801]
[1772719637931,4.24806123,90.99,90.94,4.24806123]
[1772719638539,12.06765379,90.999,90.942,11.90920814]
[1772719638943,9.888,90.998,90.942,11.90920814]
[1772719639144,4.24806123,90.99,90.942,11.90920814]
[1772719639743,4.24806123,90.99,90.942,21.80320814]
[1772719640044,4.24806123,90.99,90.943,12.1065355]
[1772719640245,4.24806123,90.99,90.886,19.801]
[1772719640246,4.24806123,91.01,90.961,12.1065355]
[1772719641145,9.887,91.009,90.961,12.1065355]
[1772719642647,4.24926967,91.01,90.961,12.1065355]
[1772719642648,9.888,91.006,90.961,12.1065355]
[1772719644749,4.24926967,91.02,90.961,12.1065355]
[1772719644948,15.73992749,91.02,90.961,12.1065355]
[1772719645149,11.49065782,91.009,90.961,12.1065355]
[1772719645845,4.24926967,91.0,90.945,12.1065355]
[1772719646149,4.24926967,90.99,90.945,12.1065355]
[1772719646750,4.24926967,90.98,90.93,15.7218279]
[1772719646952,4.24926967,90.98,90.931,11.47255823]
[1772719647551,4.24926967,90.97,90.931,11.47255823]
[1772719647951,12.07980733,90.978,90.931,11.47255823]
[1772719648354,21.97080733,90.978,90.931,11.47255823]
[1772719649754,4.24926967,90.98,90.931,11.47255823]
[1772719649755,9.891,90.975,90.931,11.47255823]
[1772719649947,12.07980733,90.969,90.92,9.897]
[1772719650352,12.07980733,90.968,90.914,11.47255823]
[1772719651243,12.07980733,90.968,90.91,4.24926967]
[1772719651244,12.07980733,90.968,90.916,11.47255823]
[1772719652354,12.07980733,90.968,90.921,9.897]
[1772719653553,4.24926967,90.97,90.916,11.47255823]
[1772719653554,12.07980733,90.967,90.916,11.47255823]
[1772719654456,12.07980733,90.965,90.916,11.47255823]
[1772719654851,4.24926967,90.94,90.869,11.47255823]
[1772719655054,12.07980733,90.939,90.891,11.47255823]
[1772719656055,4.24926967,90.94,90.814,154.136]
[1772719656056,12.07980733,90.955,90.9,4.24926967]
[1772719656253,12.07980733,90.955,90.91,15.7218279]
[1772719656454,12.07980733,90.955,90.91,11.47255823]
[1772719658257,11.01,91.076,90.843,154.088]
[1772719658258,12.07980733,90.973,90.93,4.24926967]
[1772719658653,4.24926967,90.97,90.921,11.47255823]
[1772719658954,16.329077,90.97,90.921,11.47255823]
[1772719659150,12.07980733,90.969,90.921,11.47255823]
[1772719661059,12.07980733,90.969,90.923,9.896]
[1772719662359,12.07980733,90.969,90.921,11.47255823]
[1772719664058,12.07980733,90.969,90.923,11.47255823]
[1772719665358,12.07980733,90.969,90.924,9.896]
[1772719666359,12.07980733,90.969,90.924,11.47255823]
[1772719666564,4.24926967,90.98,90.932,11.47255823]
[1772719666764,12.07980733,90.98,90.94,4.24926967]
[1772719666975,12.07980733,90.98,90.94,15.7218279]
[1772719667362,4.24926967,90.99,90.943,9.894]
[1772719667754,16.329077,90.99,90.943,9.894]
[1772719668166,12.07980733,90.988,90.943,9.894]
[1772719668957,19.771,91.027,90.93,4.24926967]
[1772719668958,4.24926967,90.98,90.93,4.24926967]
[1772719669158,4.24926967,90.95,90.905,12.16497543]
[1772719669467,11.24164373,90.949,90.905,12.16497543]
[1772719670265,11.24164373,90.949,90.906,9.898]
[1772719670569,11.24164373,90.959,90.907,12.16497543]
[1772719671270,11.24164373,90.958,90.907,12.16497543]
[1772719672469,9.893,90.957,90.907,12.16497543]
[1772719672672,9.893,90.957,90.908,9.898]
[1772719673171,4.24926967,90.96,90.911,12.16497543]
[1772719673475,20.32583595,91.021,90.855,11.01]
[1772719673476,11.24164373,91.008,90.951,12.16497543]
[1772719673672,11.24164373,91.008,90.96,4.24926967]
[1772719674477,13.4779459,91.065,90.912,19.796]
[1772719674478,11.24164373,91.034,90.99,4.24926967]
[1772719675574,11.24164373,91.019,90.971,9.891]
[1772719675771,11.24164373,91.019,90.97,4.24926967]
[1772719675971,15.4909134,91.01,90.964,12.16497543]
[1772719676270,11.24164373,91.009,90.964,12.16497543]
[1772719677462,11.24164373,91.009,90.96,4.24926967]
[1772719678668,11.24164373,91.009,90.949,12.16497543]
[1772719678867,4.24926967,90.97,90.924,12.16497543]
[1772719679173,4.24926967,90.96,90.901,12.16497543]
[1772719680068,4.24926967,90.96,90.91,4.24926967]
[1772719680270,11.24164373,90.969,90.911,12.16497543]
[1772719680474,11.24164373,90.969,90.921,12.16497543]
[1772719680672,11.24164373,90.998,90.921,12.16497543]
[1772719680974,11.24164373,90.991,90.921,12.16497543]
[1772719681976,11.24164373,90.989,90.921,12.16497543]
[1772719682365,11.24164373,90.969,90.872,12.16497543]
[1772719682672,11.24164373,90.928,90.851,12.16497543]
[1772719683267,11.24164373,90.928,90.872,9.902]
[1772719683474,11.24164373,90.928,90.869,12.16497543]
[1772719684072,11.24164373,90.926,90.869,12.16497543]
[1772719684871,9.896,90.924,90.869,12.16497543]
[1772719685065,21.13764373,90.924,90.869,12.16497543]
[1772719685262,11.24164373,90.924,90.869,12.16497543]
[1772719685865,11.24164373,90.924,90.869,22.06697543]
[1772719686071,11.24164373,90.924,90.87,12.16497543]
[1772719689370,9.897,90.922,90.87,12.16497543]
[1772719689568,11.24164373,90.921,90.87,12.16497543]
[1772719692575,11.24164373,90.921,90.871,9.902]
[1772719692769,11.24164373,90.921,90.872,12.16497543]
[1772719693273,11.24164373,90.921,90.851,12.16497543]
[1772719694570,11.24164373,90.921,90.873,12.16497543]
[1772719695178,11.24164373,90.943,90.876,12.16497543]
[1772719695380,11.24164373,90.943,90.86,12.16497543]
[1772719695574,11.24164373,90.943,90.83,9.11221944]
[1772719695575,11.24164373,90.889,90.807,9.909]
[1772719695779,9.903,90.864,90.808,12.16497543]
[1772719695980,11.24164373,90.863,90.808,12.16497543]
[1772719697481,11.24164373,90.863,90.812,9.909]
[1772719699477,11.24164373,90.863,90.808,12.16497543]
[1772719699675,12.11581615,90.829,90.761,11.79247159]
[1772719699873,12.11581615,90.809,90.743,11.79247159]
[1772719700376,9.11221944,90.79,90.707,11.79247159]
[1772719700576,9.11221944,90.79,90.735,9.917]
[1772719700882,12.11581615,90.769,90.704,11.79247159]
[1772719701183,12.11581615,90.769,90.671,11.79247159]
[1772719701883,12.11581615,90.769,90.69,11.79247159]
[1772719702077,9.11221944,90.79,90.691,11.79247159]
[1772719702278,12.11581615,90.789,90.691,11.79247159]
[1772719702978,9.15375998,90.84,90.691,11.79247159]
[1772719702979,12.11581615,90.769,90.691,11.79247159]
[1772719703478,12.11581615,90.769,90.702,9.921]
[1772719704386,12.11581615,90.789,90.709,11.79247159]
[1772719705474,12.11581615,90.789,90.724,9.918]
[1772719707886,12.11581615,90.789,90.735,9.917]
[1772719709182,12.11581615,90.789,90.69,9.15375998]
[1772719709183,11.67265349,90.779,90.69,11.12334855]
[1772719709388,11.67265349,90.759,90.69,11.12334855]
[1772719710187,11.67265349,90.759,90.722,9.918]
[1772719710389,11.67265349,90.759,90.69,11.12334855]
[1772719710889,11.67265349,90.759,90.709,9.92]
[1772719711093,154.111,90.83,90.651,11.12334855]
[1772719711094,11.67265349,90.739,90.651,11.12334855]
[1772719712395,11.67265349,90.739,90.686,9.922]
[1772719712889,124.0,90.81,90.67,11.12334855]
[1772719712890,9.15375998,90.77,90.671,11.12334855]
[1772719713793,9.15375998,90.77,90.695,9.921]
[1772719714092,9.15375998,90.75,90.671,11.12334855]
[1772719714292,9.15375998,90.74,90.683,9.923]
[1772719714499,9.15375998,90.74,90.671,11.12334855]
[1772719714890,8.22800599,90.739,90.671,11.12334855]
[1772719715491,8.22800599,90.739,90.693,9.922]
[1772719716000,8.22800599,90.739,90.671,11.12334855]
[1772719716001,8.25494379,90.719,90.671,9.924]
[1772719716296,8.25494379,90.719,90.651,11.12334855]
[1772719716698,8.25494379,90.719,90.634,195.06625333]
[1772719716896,8.25494379,90.719,90.635,11.12334855]
[1772719717197,9.15375998,90.77,90.653,11.12334855]
[1772719717198,8.11150658,90.739,90.653,11.12334855]
[1772719717694,8.11150658,90.739,90.677,9.923]
[1772719717893,8.11150658,90.739,90.653,11.12334855]
[1772719718091,8.12270922,90.719,90.653,11.12334855]
[1772719718596,8.12270922,90.719,90.635,11.12334855]
[1772719719293,9.15375998,90.72,90.635,11.12334855]
[1772719719294,7.47725413,90.715,90.653,9.926]
[1772719719596,7.47725413,90.699,90.653,9.926]
[1772719721198,7.47725413,90.699,90.662,9.925]
[1772719722196,7.54400341,90.689,90.613,11.12334855]
[1772719723498,7.54400341,90.689,90.65,9.926]
[1772719723894,7.54400341,90.689,90.594,154.511]
[1772719723895,7.73117436,90.709,90.631,11.12334855]
[1772719724199,7.73111331,90.679,90.594,11.12334855]
[1772719724398,7.73111331,90.659,90.594,11.12334855]
[1772719724598,7.73111331,90.659,90.631,9.928]
[1772719725397,9.921,90.697,90.594,11.12334855]
[1772719725592,9.15375998,90.71,90.594,11.12334855]
[1772719725593,9.15375998,90.69,90.594,11.12334855]
[1772719725797,9.15375998,90.67,90.594,11.12334855]
[1772719726501,9.15375998,90.69,90.594,11.12334855]
[1772719726697,9.15375998,90.71,90.594,11.12334855]
[1772719726891,9.15375998,90.69,90.594,11.12334855]
[1772719727091,9.15375998,90.71,90.615,12.42256817]
[1772719727092,9.921,90.703,90.615,12.42256817]
[1772719728001,1.9197458,90.7,90.615,12.42256817]
[1772719728402,1.9197458,90.7,90.647,9.927]
[1772719729604,9.921,90.698,90.639,9.928]
[1772719729902,9.921,90.698,90.615,12.42256817]
[1772719730506,9.922,90.69,90.639,9.927]
[1772719731303,0.0007458,90.7,90.635,19.856]
[1772719731501,9.15375998,90.73,90.636,12.42976216]
[1772719731705,9.15375998,90.74,90.651,12.42976216]
[1772719732001,9.15375998,90.76,90.669,12.42976216]
[1772719732201,9.15375998,90.71,90.63,12.43004267]
[1772719732506,9.15375998,90.69,90.601,12.43004267]
[1772719732705,9.15375998,90.71,90.601,12.43004267]
[1772719733102,9.15375998,90.71,90.63,12.43982518]
[1772719733707,9.92,90.708,90.653,9.926]
[1772719734300,9.15375998,90.69,90.63,12.43982518]
[1772719734605,1.91962402,90.695,90.608,12.44011528]
[1772719734799,9.15375998,90.68,90.608,12.44011528]
[1772719735404,0.16728333,90.679,90.608,12.44011528]
[1772719739505,0.16728333,90.679,90.636,9.928]
[1772719740006,0.16728333,90.679,90.608,12.44011528]
[1772719740205,0.16728333,90.679,90.6,9.15375998]
[1772719740206,9.15375998,90.69,90.65,9.926]
[1772719740406,1.91962402,90.695,90.65,9.926]
[1772719740611,0.16758716,90.697,90.624,12.31976164]
[1772719740906,9.15375998,90.78,90.641,12.40326164]
[1772719740907,9.15375998,90.73,90.641,12.40326164]
[1772719741108,0.00025877,90.732,90.661,12.40319347]
[1772719741306,9.83888895,90.789,90.644,154.425]
[1772719741307,9.15375998,90.77,90.689,12.40319347]
[1772719741509,9.15375998,90.79,90.689,12.40319347]
[1772719742004,9.15375998,90.79,90.68,9.15375998]
[1772719742005,9.912,90.779,90.723,9.918]
[1772719742304,9.15375998,90.79,90.706,12.40319347]
[1772719742509,9.15375998,90.79,90.7,9.15375998]
[1772719742510,9.91,90.803,90.737,9.917]
[1772719743204,0.04942117,90.793,90.746,9.916]
[1772719744304,0.04942117,90.793,90.7,9.15375998]
[1772719744305,8.80822778,90.809,90.755,9.915]
[1772719744508,0.05437399,90.812,90.743,12.38742732]
[1772719744708,0.05967208,90.809,90.743,12.38742732]
[1772719744914,0.05967208,90.807,90.711,12.38742732]
[1772719745114,0.1507204,90.826,90.731,12.38742732]
[1772719745312,19.74112385,90.875,90.73,9.15375998]
[1772719745313,861.11242164,90.846,90.771,12.34190316]
[1772719745516,8.85087498,90.845,90.771,12.34190316]
[1772719745717,861.11242164,90.846,90.771,12.34190316]
[1772719746413,861.11242164,90.846,90.797,9.91]
[1772719746810,861.11242164,90.846,90.771,12.34190316]
[1772719747010,861.11242164,90.846,90.788,9.911]
[1772719747412,861.11242164,90.846,90.771,12.34190316]
[1772719747617,0.8024615,90.845,90.771,12.34190316]
[1772719748215,0.8024615,90.845,90.786,9.911]
[1772719748411,0.80713529,90.829,90.751,12.02139554]
[1772719748816,0.80713529,90.829,90.763,9.914]
[1772719749023,0.80713529,90.829,90.751,12.02139554]
[1772719749423,0.85714214,90.828,90.763,9.914]
[1772719749823,0.86212703,90.825,90.763,9.914]
[1772719750119,0.86212703,90.825,90.773,9.913]
[1772719750315,9.15375998,90.83,90.774,11.99911959]
[1772719751218,0.86185455,90.844,90.778,9.912]
[1772719751418,0.86185455,90.844,90.774,11.99911959]
[1772719751926,272.60245622,90.848,90.8,9.91]
[1772719752419,272.60245622,90.848,90.769,12.00897247]
[1772719752420,0.85198254,90.845,90.769,12.00897247]
[1772719752818,272.60245622,90.848,90.769,12.00897247]
[1772719752819,0.85683664,90.843,90.769,12.00897247]
[1772719753227,0.85683664,90.843,90.788,9.911]
[1772719753426,272.60245622,90.848,90.788,11.9474665]
[1772719753924,272.60245622,90.848,90.797,9.91]
[1772719754226,0.98434613,90.845,90.767,11.9475868]
[1772719754421,0.98434613,90.843,90.784,9.912]
[1772719755727,272.60245622,90.848,90.793,9.911]
[1772719756727,272.60245622,90.848,90.785,11.94364976]
[1772719756929,827.06770124,90.846,90.791,11.9437667]
[1772719757132,9.15375998,90.87,90.791,11.9437667]
[1772719757325,1.00375631,90.867,90.791,11.9437667]
[1772719758329,9.904,90.858,90.807,9.909]
[1772719758730,1.00375631,90.867,90.791,11.9437667]
[1772719758933,1.01839788,90.889,90.791,11.9437667]
[1772719759331,1.14266581,90.883,90.791,11.9437667]
[1772719760523,11.04885448,90.877,90.815,9.908]
[1772719760728,11.04885448,90.877,90.808,11.88297821]
[1772719760933,9.15375998,90.89,90.84,9.905]
[1772719761232,1.23818202,90.889,90.791,11.83951252]
[1772719761433,9.15375998,90.87,90.791,11.83951252]
[1772719761633,1.23818202,90.869,90.814,9.908]
[1772719762029,10.39607865,90.85,90.791,11.83951252]
[1772719762530,10.38494231,90.85,90.791,11.83951252]
[1772719763128,9.14262364,90.83,90.786,9.911]
[1772719763334,9.14262364,90.83,90.768,11.86904642]
[1772719763531,9.14262364,90.83,90.768,21.78204642]
[1772719763532,9.908,90.818,90.768,21.78204642]
[1772719763834,9.14262364,90.81,90.721,11.86904642]
[1772719764227,1.19198063,90.809,90.747,9.916]
[1772719764428,1.19198063,90.809,90.741,11.86914677]
[1772719764833,1.19630086,90.829,90.762,9.914]
[1772719765533,9.909,90.808,90.762,9.914]
[1772719765834,9.909,90.808,90.754,9.915]
[1772719766036,9.91,90.801,90.741,11.86914677]
[1772719766834,9.14262364,90.79,90.701,11.92561809]
[1772719767029,1.11595192,90.801,90.701,11.92561809]
[1772719767434,1.11595192,90.801,90.74,11.9370033]
[1772719768329,9.14262364,90.83,90.74,11.9370033]
[1772719768530,9.14262364,90.83,90.741,11.93710661]
[1772719768823,9.14262364,90.83,90.781,9.912]
[1772719769226,9.14262364,90.83,90.776,11.93710661]
[1772719769427,9.905,90.847,90.793,9.911]
[1772719769626,9.905,90.847,90.776,11.93710661]
[1772719770027,9.905,90.847,90.794,9.911]
[1772719771134,9.14262364,90.85,90.776,11.93710661]
[1772719771135,9.906,90.84,90.785,9.911]
[1772719771535,9.14262364,90.85,90.776,11.93710661]
[1772719772539,1.09016865,90.861,90.794,11.97761744]
[1772719773537,9.904,90.858,90.808,9.909]
[1772719773734,9.83888895,90.918,90.808,11.98239252]
[1772719773735,1.03214792,90.878,90.808,11.98239252]
[1772719774635,27.93311075,90.898,90.808,11.98239252]
[1772719774937,27.93311075,90.898,90.82,9.14262364]
[1772719775134,27.93311075,90.898,90.859,9.903]
[1772719775334,9.14262364,90.91,90.859,9.903]
[1772719776029,9.14262364,90.91,90.82,9.14262364]
[1772719776030,37.27077124,90.91,90.82,9.14262364]
[1772719776227,28.1281476,90.909,90.82,9.14262364]
[1772719777238,28.18456955,90.908,90.847,9.905]
[1772719777740,28.18456955,90.908,90.82,9.14262364]
[1772719778736,28.18456955,90.908,90.81,9.14262364]
[1772719778941,28.18456955,90.908,90.83,9.14262364]
[1772719779641,28.18456955,90.908,90.81,9.14262364]
[1772719780038,9.899,90.897,90.843,9.905]
[1772719780240,28.18135336,90.896,90.81,9.14262364]
[1772719780442,9.14262364,90.91,90.81,9.14262364]
[1772719780743,28.18135336,90.909,90.851,9.904]
[1772719781336,28.18135336,90.909,90.786,154.184]
[1772719781337,28.18135336,90.909,90.811,154.141]
[1772719781539,28.21492193,90.933,90.83,9.14262364]
[1772719781737,28.21492193,90.933,90.87,9.14262364]
[1772719781940,28.21492193,90.933,90.876,9.902]
[1772719782142,28.21492193,90.933,90.85,9.14262364]
[1772719782644,28.21492193,90.933,90.87,9.14262364]
[1772719783142,28.21492193,90.933,90.884,9.901]